fUST/lending_fUST_20250621
["ID","MTS","AMOUNT","RATE_DAILY","PERIOD"]
[366854333,1750517439183,-151.0,0.00024657,7]
[366854334,1750517439193,-154.41147,0.00024657,7]
[366854335,1750517439202,-151.0,0.00024657,7]
[366854336,1750517439211,-151.0,0.00024657,7]
[366854337,1750517439220,-151.0,0.00024657,7]
[366854338,1750517439229,-151.0,0.00024657,7]
[366854339,1750517439238,-151.0,0.00024657,7]
[366854340,1750517439247,-151.0,0.00024657,7]
[366854341,1750517439258,-151.0,0.00024657,7]
[366854342,1750517439267,-476.35905642,0.00024657,3]
[366854343,1750517439276,-151.0,0.00024657,7]
[366854344,1750517439286,-471.28742094,0.00024657,3]
[366854345,1750517439296,-151.0,0.00024657,7]
[366854346,1750517439305,-187.70464,0.00024657,7]
[366854347,1750517439314,-151.0,0.00024657,7]
[366854348,1750517439324,-151.0,0.00024657,7]
[366854349,1750517439333,-151.0,0.00024657,7]
[366854350,1750517439342,-151.0,0.00024657,7]
[366854351,1750517439351,-269.632484,0.00024657,7]
[366854352,1750517439360,-433.08403681,0.00024657,3]
[366854353,1750517439370,-498.40548498,0.00024657,3]
[366854354,1750517439379,-151.0,0.00024657,7]
[366854355,1750517439388,-151.0,0.00024657,7]
[366854356,1750517439397,-151.0,0.00024657,7]
[366854357,1750517439407,-201.48994464,0.00024657,3]
[366854358,1750517439416,-470.10780753,0.00024657,3]
[366854359,1750517439426,-151.0,0.00024657,7]
[366854360,1750517439436,-476.00943864,0.00024657,3]
[366854361,1750517439445,-473.06140531,0.00024657,3]
[366854362,1750517439454,-472.84304199,0.00024657,3]
[366854363,1750517439466,-604.80386336,0.00024657,3]
[366854364,1750517439475,-451.27114126,0.00024657,3]
[366854365,1750517439484,-151.0,0.00024657,7]
[366854366,1750517439493,-151.0,0.00024657,7]
[366854367,1750517439502,-151.0,0.00024657,7]
[366854368,1750517439513,-500.0,0.00024657,2]
[366854369,1750517439523,-500.0,0.00024657,2]
[366854370,1750517439532,-500.0,0.00024657,2]
[366854371,1750517439543,-500.0,0.00024657,2]
[366854372,1750517439552,-199.62664556,0.00024657,2]
[366854373,1750517439562,-151.0,0.00024657,7]
[366854374,1750517439571,-188.591294,0.00024657,7]
[366854375,1750517439580,-460.0,0.00024657,3]
[366854376,1750517439589,-460.0,0.00024657,3]
[366854377,1750517439599,-460.0,0.00024657,3]
[366854378,1750517439608,-460.0,0.00024657,3]
[366854379,1750517439617,-460.0,0.00024657,3]
[366854380,1750517439627,-460.0,0.00024657,3]
[366854381,1750517439636,-463.6923709,0.00024657,3]
[366854382,1750517439645,-151.0,0.00024657,7]
[366854383,1750517439654,-482.75016863,0.00024657,3]
[366854384,1750517439663,-151.0,0.00024657,7]
[366854385,1750517439673,-226.645457,0.00024657,7]
[366854386,1750517439681,-460.0,0.00024657,3]
[366854387,1750517439690,-282.77142968,0.00024657,3]
[366854388,1750517439700,-486.43476519,0.00024657,3]
[366854389,1750517439709,-236.182842,0.00024657,7]
[366854390,1750517439718,-460.0,0.00024657,3]
[366854391,1750517439727,-532.35,0.00024657,3]
[366854392,1750517439737,-151.0,0.00024657,7]
[366854393,1750517439746,-151.0,0.00024657,7]
[366854394,1750517439755,-169.52193716,0.00024657,3]
[366854396,1750517439764,-151.0,0.00024657,7]
[366854397,1750517439774,-460.0,0.00024657,3]
[366854399,1750517439783,-460.0,0.00024657,3]
[366854401,1750517439792,-460.0,0.00024657,3]
[366854403,1750517439801,-466.35092065,0.00024657,3]
[366854404,1750517439810,-518.52446356,0.00024657,3]
[366854406,1750517439819,-151.0,0.00024657,7]
[366854408,1750517439828,-151.0,0.00024657,7]
[366854410,1750517439837,-151.0,0.00024657,7]
[366854412,1750517439846,-151.0,0.00024657,7]
[366854414,1750517439855,-151.0,0.00024657,7]
[366854415,1750517439865,-151.0,0.00024657,7]
[366854417,1750517439874,-12549.17366507,0.00024657,3]
[366854419,1750517439883,-221.242054,0.00024657,7]
[366854421,1750517439892,-221.242054,0.00024657,7]
[366854423,1750517439901,-221.242054,0.00024657,7]
[366854425,1750517439910,-221.242054,0.00024657,7]
[366854426,1750517439919,-481.66748531,0.00024657,3]
[366854428,1750517439928,-460.0,0.00024657,3]
[366854430,1750517439937,-460.0,0.00024657,3]
[366854432,1750517439946,-460.0,0.00024657,3]
[366854434,1750517439955,-224.83,0.00024657,3]
[366854435,1750517439964,-151.0,0.00024657,7]
[366854437,1750517439973,-424.93363889,0.00024657,3]
[366854439,1750517439983,-460.0,0.00024657,3]
[366854441,1750517439992,-460.25848663,0.00024657,3]
[366854442,1750517440001,-460.0,0.00024657,3]
[366854444,1750517440009,-460.0,0.00024657,3]
[366854446,1750517440018,-836.41202323,0.00024657,3]
[366854448,1750517440028,-466.80360553,0.00024657,3]
[366854449,1750517440037,-151.0,0.00024657,7]
[366854451,1750517440046,-151.0,0.00024657,7]
[366854453,1750517440055,-474.64181238,0.00024657,3]
[366854455,1750517440064,-467.26738586,0.00024657,3]
[366854456,1750517440073,-466.34398814,0.00024657,3]
[366854457,1750517440082,-472.34325712,0.00024657,3]
[366854458,1750517440091,-460.0,0.00024657,3]
[366854459,1750517440100,-460.0,0.00024657,3]
[366854460,1750517440110,-460.0,0.00024657,3]
[366854461,1750517440119,-460.0,0.00024657,3]
[366854462,1750517440127,-460.0,0.00024657,3]
[366854463,1750517440136,-460.0,0.00024657,3]
[366854464,1750517440145,-151.0,0.00024657,7]
[366854465,1750517440154,-151.0,0.00024657,7]
[366854466,1750517440163,-151.0,0.00024657,7]
[366854467,1750517440172,-151.0,0.00024657,7]
[366854468,1750517440182,-151.0,0.00024657,7]
[366854469,1750517440191,-151.0,0.00024657,7]
[366854470,1750517440200,-460.0,0.00024657,3]
[366854471,1750517440209,-460.0,0.00024657,3]
[366854472,1750517440218,-460.0,0.00024657,3]
[366854473,1750517440227,-460.0,0.00024657,3]
[366854474,1750517440236,-460.0,0.00024657,3]
[366854475,1750517440246,-460.0,0.00024657,3]
[366854476,1750517440255,-460.0,0.00024657,3]
[366854477,1750517440264,-384.06,0.00024657,3]
[366854478,1750517440273,-460.0,0.00024657,3]
[366854479,1750517440282,-460.0,0.00024657,3]
[366854480,1750517440292,-460.0,0.00024657,3]
[366854481,1750517440301,-460.0,0.00024657,3]
[366854482,1750517440310,-460.0,0.00024657,3]
[366854483,1750517440320,-460.0,0.00024657,3]
[366854484,1750517440328,-460.0,0.00024657,3]
[366854485,1750517440337,-460.0,0.00024657,3]
[366854486,1750517440346,-460.0,0.00024657,3]
[366854487,1750517440355,-460.0,0.00024657,3]
[366854488,1750517440364,-460.0,0.00024657,3]
[366854489,1750517440373,-399.98,0.00024657,3]
[366854490,1750517440383,-460.0,0.00024657,3]
[366854491,1750517440392,-151.0,0.00024657,7]
[366854492,1750517440402,-460.0,0.00024657,3]
[366854493,1750517440410,-460.0,0.00024657,3]
[366854494,1750517440419,-151.708734,0.00024657,7]
[366854495,1750517440429,-460.0,0.00024657,3]
[366854496,1750517440438,-460.0,0.00024657,3]
[366854497,1750517440448,-460.0,0.00024657,3]
[366854498,1750517440457,-460.0,0.00024657,3]
[366854499,1750517440470,-460.0,0.00024657,3]
[366854500,1750517440479,-336.09476785,0.00024657,3]
[366854543,1750517444790,-1147.37058456,0.000239,10]
[366854544,1750517444801,-860.01355743,0.00023969,10]
[366854545,1750517444814,-287.3570271,0.00023969,10]
[366854546,1750517444824,-1147.37058453,0.00024038,10]
[366854548,1750517444834,-159.0806219,0.00024082,2]
[366854549,1750517444844,-574.5372799,0.00024082,2]
[366854550,1750517444854,-1147.37058453,0.00024107,10]
[366854551,1750517444864,-1147.37058453,0.00024176,10]
[366854553,1750517444874,-197.309,0.00024196,2]
[366854556,1750517444884,-150.0,0.00024196,2]
[366854558,1750517444895,-242.505,0.00024196,2]
[366854559,1750517444902,-1147.37058453,0.00024245,10]
[366854561,1750517444910,-1147.37058453,0.00024314,10]
[366854563,1750517444919,-1147.37058453,0.00024383,11]
[366854565,1750517444929,-1100.56546044,0.00024452,11]
[366854568,1750517444943,-46.80512409,0.00024452,11]
[366854569,1750517444954,-1147.37058453,0.00024521,11]
[366854570,1750517444964,-99.08523215,0.00024657,3]
[366854571,1750517444974,-354.44033635,0.00024657,3]
[366854572,1750517444985,-460.0,0.00024657,3]
[366854573,1750517444994,-460.0,0.00024657,3]
[366854574,1750517445004,-460.0,0.00024657,3]
[366854575,1750517445014,-460.0,0.00024657,3]
[366854576,1750517445024,-151.0,0.00024657,7]
[366854577,1750517445033,-460.0,0.00024657,3]
[366854578,1750517445043,-151.0,0.00024657,7]
[366854579,1750517445053,-460.0,0.00024657,3]
[366854580,1750517445062,-256.417804,0.00024657,7]
[366854581,1750517445072,-460.0,0.00024657,3]
[366854582,1750517445081,-460.0,0.00024657,3]
[366854583,1750517445091,-460.0,0.00024657,3]
[366854584,1750517445101,-460.0,0.00024657,3]
[366854585,1750517445111,-460.0,0.00024657,3]
[366854586,1750517445120,-460.0,0.00024657,3]
[366854587,1750517445129,-460.0,0.00024657,3]
[366854588,1750517445139,-153.64,0.00024657,3]
[366854589,1750517445148,-460.0,0.00024657,3]
[366854590,1750517445158,-460.0,0.00024657,3]
[366854591,1750517445168,-460.0,0.00024657,3]
[366854592,1750517445177,-460.0,0.00024657,3]
[366854593,1750517445187,-460.0,0.00024657,3]
[366854594,1750517445196,-460.0,0.00024657,3]
[366854595,1750517445205,-460.0,0.00024657,3]
[366854596,1750517445215,-460.0,0.00024657,3]
[366854597,1750517445224,-469.54706275,0.00024657,3]
[366854598,1750517445235,-460.0,0.00024657,3]
[366854599,1750517445245,-460.0,0.00024657,3]
[366854600,1750517445254,-460.0,0.00024657,3]
[366854601,1750517445264,-469.98772164,0.00024657,3]
[366854602,1750517445274,-460.0,0.00024657,3]
[366854603,1750517445283,-460.0,0.00024657,3]
[366854604,1750517445293,-460.0,0.00024657,3]
[366854605,1750517445302,-460.0,0.00024657,3]
[366854606,1750517445312,-460.0,0.00024657,3]
[366854607,1750517445321,-460.0,0.00024657,3]
[366854608,1750517445331,-460.0,0.00024657,3]
[366854609,1750517445340,-460.0,0.00024657,3]
[366854610,1750517445350,-460.0,0.00024657,3]
[366854611,1750517445359,-460.0,0.00024657,3]
[366854612,1750517445369,-460.0,0.00024657,3]
[366854613,1750517445379,-460.0,0.00024657,3]
[366854614,1750517445388,-217.75077849,0.00024657,3]
[366854615,1750517445398,-460.0,0.00024657,3]
[366854616,1750517445407,-460.0,0.00024657,3]
[366854617,1750517445417,-460.0,0.00024657,3]
[366854618,1750517445426,-460.0,0.00024657,3]
[366854619,1750517445436,-151.0,0.00024657,7]
[366854620,1750517445445,-460.0,0.00024657,3]
[366854621,1750517445455,-460.0,0.00024657,3]
[366854622,1750517445467,-599.8,0.00024657,3]
[366854623,1750517445477,-151.0,0.00024657,7]
[366854624,1750517445487,-151.0,0.00024657,7]
[366854625,1750517445496,-460.0,0.00024657,3]
[366854626,1750517445507,-460.0,0.00024657,3]
[366854627,1750517445517,-486.68951857,0.00024657,3]
[366854628,1750517445527,-460.0,0.00024657,3]
[366854629,1750517445537,-460.0,0.00024657,3]
[366854630,1750517445546,-460.0,0.00024657,3]
[366854631,1750517445556,-162.03,0.00024657,3]
[366854632,1750517445566,-250.67989878,0.00024657,3]
[366854633,1750517445576,-225.3610446,0.00024657,3]
[366854634,1750517445586,-460.0,0.00024657,3]
[366854635,1750517445595,-460.0,0.00024657,3]
[366854636,1750517445605,-460.0,0.00024657,3]
[366854637,1750517445614,-460.0,0.00024657,3]
[366854638,1750517445624,-460.0,0.00024657,3]
[366854639,1750517445634,-460.0,0.00024657,3]
[366854640,1750517445643,-460.0,0.00024657,3]
[366854641,1750517445652,-460.0,0.00024657,3]
[366854642,1750517445662,-460.0,0.00024657,3]
[366854643,1750517445671,-460.0,0.00024657,3]
[366854644,1750517445682,-460.0,0.00024657,3]
[366854645,1750517445691,-525.40685185,0.00024657,3]
[366854646,1750517445704,-460.0,0.00024657,3]
[366854647,1750517445714,-460.0,0.00024657,3]
[366854648,1750517445723,-460.0,0.00024657,3]
[366854650,1750517445733,-562.8,0.00024657,3]
[366854652,1750517445743,-1428.58,0.00024657,3]
[366854653,1750517445752,-482.67966595,0.00024657,3]
[366854654,1750517445762,-1428.58,0.00024657,3]
[366854656,1750517445771,-1070.62833332,0.00024657,3]
[366854659,1750517446188,-500.0,0.00023,2]
[366854660,1750517446198,-287.32869947,0.00023,2]
[366854661,1750517446207,-1147.37058453,0.0002459,11]
[366854662,1750517446216,-357.95166668,0.00024657,3]
[366854663,1750517446226,-1428.58,0.00024657,3]
[366854664,1750517446235,-1428.58,0.00024657,3]
[366854665,1750517446245,-1428.58,0.00024657,3]
[366854666,1750517446254,-460.0,0.00024657,3]
[366854667,1750517446264,-460.0,0.00024657,3]
[366854668,1750517446273,-1428.58,0.00024657,3]
[366854669,1750517446282,-460.0,0.00024657,3]
[366854670,1750517446291,-1428.58,0.00024657,3]
[366854672,1750517446301,-460.0,0.00024657,3]
[366854673,1750517446310,-1428.58,0.00024657,3]
[366854674,1750517446320,-460.0,0.00024657,3]
[366854675,1750517446330,-1428.58,0.00024657,3]
[366854676,1750517446339,-460.0,0.00024657,3]
[366854677,1750517446348,-1428.58,0.00024657,3]
[366854678,1750517446358,-460.0,0.00024657,3]
[366854679,1750517446367,-1428.58,0.00024657,3]
[366854680,1750517446376,-460.0,0.00024657,3]
[366854681,1750517446385,-1428.58,0.00024657,3]
[366854682,1750517446395,-365.77,0.00024657,3]
[366854683,1750517446405,-1428.58,0.00024657,3]
[366854684,1750517446414,-460.0,0.00024657,3]
[366854685,1750517446424,-1428.58,0.00024657,3]
[366854686,1750517446434,-460.0,0.00024657,3]
[366854687,1750517446444,-1428.58,0.00024657,3]
[366854688,1750517446454,-460.0,0.00024657,3]
[366854689,1750517446468,-1428.58,0.00024657,3]
[366854690,1750517446478,-460.0,0.00024657,3]
[366854691,1750517446488,-460.0,0.00024657,3]
[366854692,1750517446497,-460.0,0.00024657,3]
[366854693,1750517446507,-460.0,0.00024657,3]
[366854694,1750517446518,-460.0,0.00024657,3]
[366854695,1750517446528,-460.0,0.00024657,3]
[366854696,1750517446538,-460.0,0.00024657,3]
[366854697,1750517446548,-460.0,0.00024657,3]
[366854698,1750517446558,-460.0,0.00024657,3]
[366854699,1750517446567,-460.0,0.00024657,3]
[366854700,1750517446577,-460.0,0.00024657,3]
[366854701,1750517446587,-510.06,0.00024657,3]
[366854702,1750517446596,-490.1312041,0.00024657,3]
[366854703,1750517446606,-463.36895868,0.00024657,3]
[366854704,1750517446615,-460.0,0.00024657,3]
[366854705,1750517446624,-460.0,0.00024657,3]
[366854706,1750517446634,-460.0,0.00024657,3]
[366854707,1750517446644,-460.0,0.00024657,3]
[366854708,1750517446654,-377.61190908,0.00024657,3]
[366854710,1750517493811,161.423072,0.00013699,2]
[366854711,1750517512159,1643.0,0.00023,30]
[366854714,1750517582136,151.0,0.00024658,120]
[366854715,1750517917118,-5000.0,0.00020279,2]
[366854716,1750517917139,-183.0,0.00020484,2]
[366854718,1750517990960,-1059.0,0.00020279,2]
[366854728,1750518122757,12164.28,0.00024,120]
[366854729,1750518122994,-154.15271675,0.00020076,2]
[366854730,1750518313798,-152.51903109,0.00019875,2]
[366854731,1750518319042,-1128.0,0.00019875,2]
[366854732,1750518367031,154.94487654,0.00018881,2]
[366854733,1750518383690,-163.0,0.00019875,2]
[366854734,1750518385006,1000.0,0.00024,120]
[366854735,1750518389329,1000.0,0.00024,120]
[366854736,1750518448092,-840.72503809,0.00019875,2]
[366854737,1750518448113,-174.40675948,0.00020384,2]
[366854738,1750518448135,-13.42586288,0.00020484,2]
[366854739,1750518448156,-174.40675948,0.00021354,2]
[366854740,1750518448178,-165.0,0.00022,2]
[366854741,1750518448199,-174.40675948,0.00022324,2]
[366854742,1750518448222,-218.55755863,0.00022326,2]
[366854743,1750518448243,-836.41202323,0.00022379,2]
[366854744,1750518448265,-163.27,0.00022417,2]
[366854745,1750518448286,-300.0,0.00022423,2]
[366854746,1750518448309,-280.94300738,0.00022424,2]
[366854750,1750518508165,161.423072,0.00013699,2]
[366854787,1750518632302,-518.3,0.00022323,2]
[366854790,1750518632314,-371.1576791,0.00022323,2]
[366854794,1750518632345,-1808.60378585,0.00022323,2]
[366854796,1750518632356,-300.0,0.00022422,2]
[366854798,1750518632365,-300.0,0.00022422,2]
[366854800,1750518632374,-1200.0,0.00022422,2]
[366854802,1750518632384,-500.0,0.00022423,2]
[366854804,1750518632393,-500.0,0.00022423,2]
[366854805,1750518632403,-500.0,0.00022423,2]
[366854807,1750518632412,-156.9977156,0.00022423,2]
[366854809,1750518632421,-246.54202037,0.00022423,2]
[366854811,1750518632431,-176.99486947,0.00022423,2]
[366854813,1750518632440,-500.0,0.00022423,2]
[366854815,1750518632449,-500.0,0.00022423,2]
[366854817,1750518632458,-500.0,0.00022423,2]
[366854819,1750518632467,-500.0,0.00022423,2]
[366854820,1750518632477,-500.0,0.00022423,2]
[366854822,1750518632486,-500.0,0.00022423,2]
[366854824,1750518632495,-500.0,0.00022423,2]
[366854827,1750518632505,-500.0,0.00022423,2]
[366854829,1750518632515,-323.44447695,0.00022423,2]
[366854831,1750518632524,-500.0,0.00022423,2]
[366854832,1750518632534,-500.0,0.00022423,2]
[366854834,1750518632543,-500.0,0.00022423,2]
[366854836,1750518632553,-500.0,0.00022423,2]
[366854839,1750518632563,-500.0,0.00022423,2]
[366854840,1750518632572,-500.0,0.00022423,2]
[366854843,1750518632581,-500.0,0.00022423,2]
[366854845,1750518632591,-500.0,0.00022423,2]
[366854847,1750518632600,-500.0,0.00022423,2]
[366854849,1750518632609,-500.0,0.00022423,2]
[366854851,1750518632619,-438.63677692,0.00022423,2]
[366854853,1750518632628,-500.0,0.00022423,2]
[366854854,1750518632638,-500.0,0.00022423,2]
[366854855,1750518632647,-500.0,0.00022423,2]
[366854856,1750518632658,-500.0,0.00022423,2]
[366854857,1750518632667,-500.0,0.00022423,2]
[366854858,1750518632677,-400.7285028,0.00022423,2]
[366854859,1750518632687,-500.0,0.00022423,2]
[366854860,1750518632697,-500.0,0.00022423,2]
[366854861,1750518632706,-329.64654423,0.00022423,2]
[366854862,1750518632715,-500.0,0.00022423,2]
[366854863,1750518632726,-300.0,0.00022424,2]
[366854864,1750518632736,-161.193,0.00022425,2]
[366854865,1750518632746,-1000.0,0.00022427,2]
[366854866,1750518632755,-230.10342898,0.00022431,2]
[366854867,1750518632765,-500.0,0.00022722,2]
[366854868,1750518632775,-169.42703452,0.00022789,2]
[366854869,1750518632784,-258.57119555,0.00022798,2]
[366854870,1750518632793,-509.97905134,0.00022799,2]
[366854871,1750518632803,-500.0,0.000228,2]
[366854872,1750518632812,-151.82735152,0.000228,2]
[366854873,1750518632822,-500.0,0.000228,2]
[366854874,1750518632831,-268.66105956,0.00022827,2]
[366854875,1750518632844,-231.33894044,0.00022827,2]
[366854876,1750518632853,-500.0,0.00022827,2]
[366854877,1750518632863,-500.0,0.00022854,2]
[366854878,1750518632872,-500.0,0.00022854,2]
[366854879,1750518632882,-500.0,0.00022855,2]
[366854880,1750518632891,-500.0,0.00022855,2]
[366854881,1750518632902,-500.0,0.00022882,2]
[366854882,1750518632912,-500.0,0.00022882,2]
[366854883,1750518632921,-500.0,0.00022898,2]
[366854884,1750518632931,-597.67928689,0.00022898,2]
[366854885,1750518632940,-352.94532775,0.00022898,2]
[366854886,1750518632950,-551.13008963,0.00022898,2]
[366854887,1750518632960,-597.67928689,0.00022898,2]
[366854888,1750518632969,-597.67928689,0.00022898,2]
[366854890,1750518632980,-597.67928689,0.00022898,2]
[366854891,1750518632992,-597.67928689,0.00022898,2]
[366854893,1750518633002,-597.67928689,0.00022898,2]
[366854895,1750518633012,-597.67928689,0.00022898,2]
[366854897,1750518633022,-422.73820927,0.00022898,2]
[366854898,1750518633034,-174.94107762,0.00022898,2]
[366854899,1750518633043,-597.67928689,0.00022898,2]
[366854900,1750518633054,-597.67928689,0.00022898,2]
[366854901,1750518633063,-597.67928689,0.00022898,2]
[366854902,1750518633073,-272.44072654,0.00022898,2]
[366854903,1750518633087,-350.40400401,0.00022898,2]
[366854904,1750518633096,-460.90848335,0.00022898,2]
[366855154,1750518640669,-161.9362472,0.00022898,2]
[366855155,1750518640679,-438.06017595,0.00022898,2]
[366855458,1750518643596,-184.7845546,0.00022898,2]
[366855460,1750518643605,-622.84473055,0.00022898,2]
[366855462,1750518643615,-622.84473055,0.00022898,2]
[366855464,1750518643625,-622.84473055,0.00022898,2]
[366855466,1750518643635,-128.20786465,0.00022898,2]
[366856001,1750518750759,200.0,0.00024362,120]
[366856002,1750518761527,522.86,0.000239,120]
[366856003,1750518903144,5000.0,0.0002,30]
[366856004,1750519203097,343.35497922,0.0002,30]
[366856006,1750519545141,-162.62661365,0.00021095,2]
[366856007,1750519545667,-4624.98773969,0.00021168,2]
[366856009,1750519633309,150.0,0.00019068,2]
[366856010,1750519636085,-1074.50261101,0.00021168,2]
[366856011,1750519636107,-1127.20827791,0.00021195,2]
[366856012,1750519636128,-202.31694421,0.0002125,7]
[366856013,1750519636150,-858.93892952,0.00021409,2]
[366856014,1750519655279,161.882285,0.00013699,2]
[366856019,1750519759097,-168.23,0.0002,2]
[366856020,1750519759118,-321.77,0.0002,7]
[366856021,1750519762139,-234.85767745,0.0002,7]
[366856022,1750519762161,-206.015825,0.00021069,2]
[366856023,1750519762183,-269.42574478,0.00021409,2]
[366856024,1750519762203,-179.87408814,0.00021443,2]
[366856025,1750519762223,-218.0,0.00021452,3]
[366856026,1750519762244,-233.564425,0.00021635,2]
[366856027,1750519762267,-2380.8981752,0.0002181,2]
[366856028,1750519762294,-187.0,0.00022,2]
[366856029,1750519762405,-165.0,0.00022,2]
[366856030,1750519762428,-170.0,0.00022,2]
[366856031,1750519762452,-500.0,0.000222,2]
[366856032,1750519762473,-219.67044962,0.00022321,2]
[366856033,1750519762494,-355.48385258,0.00022322,2]
[366856034,1750519762516,-300.0,0.00022367,2]
[366856035,1750519762538,-369.27160855,0.00022368,2]
[366856036,1750519762562,-215.40408633,0.00022368,2]
[366856037,1750519762585,-544.5253892,0.00022368,2]
[366856038,1750519762608,-647.73850491,0.00022368,2]
[366856039,1750519762628,-160.0,0.00022368,2]
[366856040,1750519762652,-846.23824438,0.00022368,2]
[366856041,1750519762673,-424.93363889,0.00022368,2]
[366856042,1750519762694,-160.0,0.00022369,2]
[366856043,1750519762715,-160.0,0.00022369,2]
[366856044,1750519762737,-3839.57046652,0.00022369,2]
[366856122,1750519832520,-181.28445271,0.00021443,2]
[366856124,1750519832530,-170.0,0.00022,2]
[366856126,1750519832540,-300.0,0.0002242,2]
[366856127,1750519832551,-1200.0,0.0002242,2]
[366856128,1750519832561,-300.0,0.00022421,2]
[366856129,1750519832570,-101.26363569,0.00022421,2]
[366856130,1750519832583,-553.4,0.00022421,2]
[366856131,1750519832595,-628.7423209,0.00022421,2]
[366856134,1750519832631,-597.06172942,0.0002242,2]
[366856136,1750519832640,-385.79106275,0.0002242,2]
[366856138,1750519832653,-500.0,0.0002242,2]
[366856139,1750519832663,-31954.06656927,0.00022421,2]
[366856140,1750519832672,-1000.0,0.00022423,2]
[366856141,1750519832702,-169.018,0.00022423,2]
[366856142,1750519832711,-153.0,0.00022438,2]
[366856143,1750519832722,-159.0806219,0.00022438,2]
[366856144,1750519832732,-574.5372799,0.00022438,2]
[366856145,1750519832742,-153.0,0.00022438,2]
[366856146,1750519832752,-159.0806219,0.00022438,2]
[366856147,1750519832761,-343.4832783,0.00022438,2]
[366856148,1750519832770,-155.6639686,0.00022438,2]
[366856149,1750519832779,-153.0,0.00022438,2]
[366856150,1750519832789,-153.0,0.00022438,2]
[366856151,1750519832799,-333.0700408,0.00022438,2]
[366856152,1750519832808,-153.0,0.00022556,2]
[366856153,1750519832818,-159.0806219,0.00022556,2]
[366856154,1750519832828,-574.5372799,0.00022556,2]
[366856155,1750519832838,-1000.0,0.00022853,2]
[366856156,1750519832847,-500.0,0.00022883,2]
[366856157,1750519832857,-500.0,0.00022883,2]
[366856158,1750519832866,-500.0,0.00022899,2]
[366856159,1750519832876,-1000.0,0.00022899,2]
[366856160,1750519832886,-183.87672762,0.00022899,2]
[366856161,1750519832895,-6168.76705449,0.000229,2]
[366856162,1750519832905,-6012.82700735,0.000229,2]
[366856163,1750519832914,-3000.0,0.000229,2]
[366856164,1750519832924,-3000.0,0.0002291,2]
[366856165,1750519832934,-3000.0,0.0002292,2]
[366856166,1750519832944,-3000.0,0.0002293,2]
[366856167,1750519832953,-3000.0,0.0002294,2]
[366856168,1750519832963,-1000.0,0.00022949,2]
[366856169,1750519832974,-3000.0,0.0002295,2]
[366856170,1750519832983,-3000.0,0.0002296,2]
[366856171,1750519832993,-520.83068004,0.0002296,2]
[366856172,1750519833003,-3000.0,0.0002297,2]
[366856173,1750519833012,-3000.0,0.0002298,2]
[366856174,1750519833023,-407.55,0.0002298,10]
[366856175,1750519833033,-3000.0,0.0002299,2]
[366856176,1750519833044,-151.0,0.0002299,7]
[366856177,1750519833053,-151.0,0.0002299,7]
[366856178,1750519833063,-151.0,0.0002299,7]
[366856179,1750519833074,-160.0,0.00022999,2]
[366856180,1750519833085,-500.0,0.00022999,2]
[366856181,1750519833095,-500.0,0.00022999,2]
[366856182,1750519833105,-151.0,0.00022999,2]
[366856183,1750519833114,-151.0,0.00022999,2]
[366856184,1750519833124,-156.7504863,0.00022999,2]
[366856185,1750519833134,-159.21540964,0.00022999,2]